bitfinex/quotes_SOLUSD_20240714
["timestamp","ask_amount","ask_price","bid_price","bid_amount"]
[1720927109678,11.74,144.5,144.46,11.74]
[1720927110075,21.1968,144.52,144.43,45.0]
[1720927110286,15.0924,144.52,144.49,11.74]
[1720927110498,15.0924,144.52,144.48,11.74]
[1720927110815,28.56240385,144.52,144.47,11.74]
[1720927111098,16.82240385,144.52,144.48,11.74]
[1720927111270,26.8324,144.52,144.44,7.49293384]
[1720927111475,26.8324,144.52,144.48,11.74]
[1720927111686,26.8324,144.52,144.47,11.74]
[1720927112198,15.0924,144.52,144.48,11.74]
[1720927112578,15.0924,144.52,144.49,11.74]
[1720927112980,18.27011847,144.55,144.5,11.74]
[1720927113195,30.01011847,144.55,144.5,11.74]
[1720927113500,11.74,144.53,144.48,11.74]
[1720927114296,11.74,144.54,144.49,11.74]
[1720927114494,30.01011847,144.55,144.45,65.0]
[1720927114687,18.27011847,144.55,144.5,11.74]
[1720927114993,28.2802,144.55,144.5,11.74]
[1720927117492,1.72961627,144.54,144.45,72.49293384]
[1720927117694,13.46961627,144.54,144.45,27.49293384]
[1720927117886,11.74,144.54,144.49,11.74]
[1720927118501,13.46978002,144.54,144.49,11.74]
[1720927120201,11.74,144.53,144.48,11.74]
[1720927127007,11.74,144.53,144.49,11.74]
[1720927127522,13.46978002,144.54,144.49,11.74]
[1720927130818,13.46978002,144.54,144.45,27.49293384]
[1720927131014,13.46978002,144.54,144.49,11.74]
[1720927132521,11.74,144.51,144.45,7.49293384]
[1720927132692,11.74,144.48,144.42,7.2306991]
[1720927132898,13.47063904,144.47,144.42,18.9706991]
[1720927133097,13.47071535,144.46,144.42,7.2306991]
[1720927133830,13.47067772,144.47,144.42,18.9706991]
[1720927134203,11.74,144.45,144.42,7.2306991]
[1720927134392,13.47089372,144.44,144.42,7.2306991]
[1720927134605,11.74,144.44,144.42,7.2306991]
[1720927136516,11.74,144.45,144.42,7.2306991]
[1720927136722,11.74,144.44,144.42,7.2306991]
[1720927138016,10.74,144.46,144.42,7.2306991]
[1720927138210,1.73089099,144.45,144.42,7.2306991]
[1720927138416,1.73088783,144.47,144.42,18.9706991]
[1720927138597,13.47088783,144.47,144.42,18.9706991]
[1720927140235,8.35388765,144.48,144.44,11.74]
[1720927140404,1.73088765,144.48,144.45,11.74]
[1720927140594,1.73052747,144.49,144.45,11.74]
[1720927140799,1.73052759,144.48,144.45,11.74]
[1720927141201,29.23982759,144.5,144.46,11.74]
[1720927142303,29.23982759,144.5,144.42,7.2306991]
[1720927142304,36.16022759,144.5,144.45,11.74]
[1720927142509,11.74,144.49,144.44,11.74]
[1720927142721,1.7305345,144.48,144.44,11.74]
[1720927143022,1.7305345,144.48,144.45,11.74]
[1720927143804,13.47053062,144.49,144.45,11.74]
[1720927144239,1.73047324,144.48,144.45,11.74]
[1720927145129,13.47053085,144.49,144.45,11.74]
[1720927145429,1.73053085,144.49,144.45,11.74]
[1720927147014,15.7693,144.5,144.46,11.74]
[1720927147220,8.65116921,144.49,144.42,7.2306991]
[1720927147409,8.65116921,144.49,144.45,11.74]
[1720927147732,20.39116921,144.49,144.44,11.74]
[1720927148032,1.73026921,144.49,144.45,11.74]
[1720927149924,20.39126921,144.49,144.44,11.74]
[1720927150228,13.47026921,144.49,144.42,7.2306991]
[1720927150435,11.74,144.48,144.42,7.2306991]
[1720927150728,11.74,144.48,144.43,11.74]
[1720927151114,1.73051476,144.47,144.43,11.74]
[1720927151337,13.47051476,144.47,144.42,18.9706991]
[1720927152421,1.73051476,144.47,144.42,7.2306991]
[1720927152621,13.47065773,144.48,144.43,11.74]
[1720927152938,13.47065642,144.49,144.44,11.74]
[1720927153233,1.73065642,144.49,144.45,11.74]
[1720927153831,1.73065642,144.49,144.46,11.74]
[1720927154614,1.73065642,144.49,144.45,11.74]
[1720927155617,13.47065642,144.49,144.44,11.74]
[1720927155922,11.74,144.47,144.42,18.9706991]
[1720927156109,13.47066039,144.47,144.42,18.9706991]
[1720927156537,1.73066039,144.47,144.43,11.74]
[1720927156717,13.47065735,144.48,144.43,11.74]
[1720927156917,11.74,144.47,144.42,18.9706991]
[1720927157318,13.47065735,144.48,144.43,11.74]
[1720927158226,13.47065735,144.48,144.42,7.2306991]
[1720927158541,13.47065735,144.48,144.43,11.74]
[1720927158842,11.74,144.47,144.42,18.9706991]
[1720927160339,13.47065735,144.48,144.43,11.74]
[1720927163239,13.47065735,144.48,144.43,11.74]
[1720927167445,13.47065735,144.48,144.42,7.2306991]
[1720927167446,1.73065882,144.49,144.42,7.2306991]
[1720927167626,17.49968457,144.5,144.46,11.74]
[1720927168249,29.23968457,144.5,144.45,11.74]
[1720927169926,15.7693,144.5,144.46,11.74]
[1720927172520,15.7693,144.5,144.42,22.6356991]
[1720927172521,29.23952766,144.5,144.42,22.6356991]
[1720927172720,36.16032766,144.5,144.45,11.74]
[1720927173631,24.42032766,144.5,144.45,11.74]
[1720927173831,36.16032766,144.5,144.45,11.74]
[1720927174046,17.49952766,144.5,144.46,11.74]
[1720927174227,34.4297,144.5,144.42,7.2306991]
[1720927174425,1.73037323,144.49,144.45,11.74]
[1720927174627,1.73052801,144.49,144.45,11.74]
[1720927175753,1.73044454,144.48,144.42,7.2306991]
[1720927175923,17.972,144.47,144.42,7.2306991]
[1720927176128,13.4708417,144.46,144.42,7.2306991]
[1720927176427,1.7308342,144.45,144.42,7.2306991]
[1720927177861,13.4708342,144.45,144.42,7.2306991]
[1720927178143,6.232,144.47,144.38,7.70028281]
[1720927178144,11.74,144.43,144.38,0.035]
[1720927178327,1.73126277,144.42,144.38,0.035]
[1720927178523,19.52616277,144.42,144.38,0.035]
[1720927178846,11.74,144.41,144.38,0.035]
[1720927179027,1.73146849,144.4,144.38,0.035]
[1720927179233,1.73146849,144.39,144.38,0.035]
[1720927179433,1.73157581,144.4,144.38,0.035]
[1720927181126,13.47157581,144.4,144.38,0.035]
[1720927181425,1.73152888,144.39,144.38,0.035]
[1720927181626,13.47152888,144.39,144.38,0.035]
[1720927182227,1.73178954,144.41,144.38,0.035]
[1720927182425,11.74,144.4,144.38,0.035]
[1720927182651,1.7316358,144.39,144.38,0.035]
[1720927183150,13.4716358,144.39,144.38,0.035]
[1720927183357,29.6075358,144.39,144.38,0.035]
[1720927183525,27.8759,144.39,144.38,0.035]
[1720927185060,36.53329091,144.39,144.38,0.035]
[1720927187649,81.53329091,144.39,144.38,0.035]
[1720927187850,29.60769091,144.39,144.38,0.035]
[1720927188224,17.86769091,144.39,144.38,0.035]
[1720927188446,29.60769091,144.39,144.38,0.035]
[1720927188679,17.86769091,144.39,144.38,0.035]
[1720927188961,1.73168773,144.4,144.38,0.035]
[1720927189128,11.74,144.41,144.38,0.035]
[1720927189129,1.73168773,144.39,144.38,0.035]
[1720927189727,6.0549,144.42,144.38,0.035]
[1720927189728,13.47168929,144.41,144.38,0.035]
[1720927191736,1.73168929,144.41,144.38,0.035]
[1720927192351,1.73149628,144.4,144.38,11.775]
[1720927192526,1.73149641,144.42,144.38,11.775]
[1720927192727,1.73149641,144.45,144.4,11.74]
[1720927192931,13.47149641,144.45,144.41,11.74]
[1720927193535,13.47149641,144.45,144.4,11.74]
[1720927194170,1.73149641,144.45,144.38,0.035]
[1720927194452,11.74,144.43,144.39,11.74]
[1720927194640,1.73121337,144.42,144.39,11.74]
[1720927195242,1.73121337,144.42,144.38,0.035]
[1720927195447,1.73121337,144.42,144.39,11.74]
[1720927195653,1.73123728,144.43,144.39,11.74]
[1720927195857,1.73121529,144.42,144.39,11.74]
[1720927196153,1.73121529,144.43,144.39,11.74]
[1720927196452,1.73121519,144.42,144.39,11.74]
[1720927196650,1.73121519,144.43,144.39,11.74]
[1720927196829,1.73121365,144.42,144.39,11.74]
[1720927197032,1.73121365,144.43,144.39,11.74]
[1720927197233,1.73121214,144.42,144.39,11.74]
[1720927197440,1.73121141,144.43,144.39,11.74]
[1720927197645,1.73121179,144.42,144.39,11.74]
[1720927197842,1.73121267,144.43,144.39,11.74]
[1720927198146,1.73121267,144.42,144.39,11.74]
[1720927198339,1.73121291,144.43,144.38,0.035]
[1720927198545,1.73121441,144.42,144.38,0.035]
[1720927198750,13.47121441,144.42,144.38,11.775]
[1720927198947,1.73141132,144.41,144.38,11.775]
[1720927199359,1.73139444,144.42,144.38,11.775]
[1720927199748,1.73139444,144.42,144.39,11.74]
[1720927200949,1.73139033,144.43,144.4,11.74]
[1720927201149,1.73120989,144.44,144.41,11.74]
[1720927201461,1.73100942,144.45,144.42,11.74]
[1720927202252,11.74,144.46,144.42,11.74]
[1720927202440,1.73099552,144.45,144.42,11.74]
[1720927203256,15.9689,144.49,144.43,11.74]
[1720927203257,1.73098988,144.48,144.43,11.74]
[1720927203460,6.0941,144.5,144.4,11.74]
[1720927203644,13.47057365,144.49,144.45,11.74]
[1720927203845,1.73057822,144.48,144.44,11.74]
[1720927204064,13.47057822,144.48,144.43,11.74]
[1720927204641,1.73057822,144.48,144.44,11.74]
[1720927204945,1.73057822,144.48,144.41,45.0]
[1720927204946,1.73057822,144.48,144.45,11.74]
[1720927205145,1.73060341,144.49,144.45,11.74]
[1720927205356,1.73059796,144.48,144.45,11.74]
[1720927206251,1.73059684,144.49,144.45,11.74]
[1720927206451,1.73053955,144.48,144.45,11.74]
[1720927206645,1.7305356,144.49,144.45,11.74]
[1720927206846,1.7305649,144.48,144.45,11.74]
[1720927207842,1.7305649,144.48,144.41,45.0]
[1720927207843,8.65157304,144.49,144.41,45.0]
[1720927208043,1.73057742,144.48,144.45,11.74]
[1720927208455,1.73057742,144.48,144.44,11.74]
[1720927209464,18.6619,144.47,144.42,11.74]
[1720927209655,1.73083803,144.46,144.38,15.0359]
[1720927209861,1.73087049,144.45,144.42,11.74]
[1720927210174,1.73087049,144.45,144.41,11.74]
[1720927210540,1.73087049,144.45,144.42,11.74]
[1720927210744,1.73091159,144.46,144.42,11.74]
[1720927210966,1.73091027,144.45,144.42,11.74]
[1720927211153,1.73091027,144.45,144.41,11.74]
[1720927213451,1.73091027,144.45,144.42,11.74]
[1720927213671,1.73090989,144.46,144.43,11.74]
[1720927213854,27.7089,144.48,144.43,11.74]
[1720927213855,1.73090998,144.45,144.43,11.74]
[1720927214057,1.73090998,144.47,144.43,11.74]
[1720927214357,13.47090998,144.47,144.42,11.74]
[1720927215153,13.41090998,144.47,144.42,11.74]
[1720927219265,1.67090998,144.47,144.43,11.74]
[1720927220568,13.41090998,144.47,144.38,15.0359]
[1720927220759,13.41090998,144.47,144.42,11.74]
[1720927220957,13.41090998,144.47,144.39,65.0]
[1720927220958,1.67090998,144.47,144.44,11.74]
[1720927221173,1.67074345,144.48,144.45,11.74]
[1720927221755,1.67054072,144.49,144.45,11.74]
[1720927221970,1.67050909,144.48,144.45,11.74]
[1720927222171,13.41055334,144.49,144.44,11.74]
[1720927222368,1.67059347,144.48,144.44,11.74]
[1720927224475,1.67059347,144.48,144.39,45.0]
[1720927224656,1.67059347,144.48,144.44,11.74]
[1720927225577,1.67059347,144.48,144.39,45.0]
[1720927225775,1.67059347,144.48,144.45,11.74]
[1720927225967,1.67055312,144.49,144.45,11.74]
[1720927226157,1.67055312,144.48,144.45,11.74]
[1720927226354,1.67055623,144.49,144.39,45.0]
[1720927226557,1.67063736,144.48,144.45,11.74]
[1720927226778,1.67063747,144.49,144.45,11.74]
[1720927226956,1.67056516,144.48,144.4,66.96]
[1720927227165,1.67056516,144.48,144.45,11.74]
[1720927227499,1.67056516,144.48,144.44,11.74]
[1720927228173,1.67068505,144.47,144.44,11.74]
[1720927228375,1.67069504,144.48,144.44,11.74]
[1720927229095,1.67069504,144.48,144.45,11.74]
[1720927229463,1.67060823,144.49,144.46,11.74]
[1720927229696,1.67059297,144.48,144.46,11.74]
[1720927229994,1.67059231,144.49,144.46,11.74]
[1720927230174,1.67059373,144.48,144.46,11.74]
[1720927230484,1.67059373,144.48,144.4,66.96]
[1720927230663,1.67059373,144.48,144.46,11.74]
[1720927231077,1.67059359,144.49,144.46,11.74]
[1720927231277,1.67059179,144.48,144.45,11.74]
[1720927232088,1.67059179,144.48,144.41,45.0]
[1720927232262,20.39265777,144.47,144.4,20.0]
[1720927232593,11.74,144.46,144.42,11.74]
[1720927232765,1.73096634,144.45,144.42,11.74]
[1720927234496,1.73096634,144.45,144.38,15.0359]
[1720927234664,1.73096634,144.45,144.42,11.74]
[1720927235868,1.73096634,144.45,144.39,45.0]
[1720927235869,1.73096634,144.45,144.38,15.0359]
[1720927236089,13.47096634,144.45,144.4,11.74]
[1720927236567,13.47096634,144.45,144.41,11.74]
[1720927236568,1.73096634,144.45,144.41,11.74]
[1720927239668,1.73096634,144.45,144.42,11.74]
[1720927239998,1.73096634,144.45,144.41,11.74]
[1720927240482,1.73096634,144.45,144.38,0.035]
[1720927240483,13.47096634,144.45,144.38,0.035]
[1720927240695,13.47096634,144.45,144.4,11.74]
[1720927242771,13.47096634,144.45,144.38,0.035]
[1720927242969,13.47096634,144.45,144.4,11.74]
[1720927244493,11.74,144.43,144.38,11.775]
[1720927244788,1.73135619,144.42,144.38,11.775]
[1720927250394,1.73135619,144.42,144.38,0.035]
[1720927250600,1.73146383,144.41,144.38,0.035]
[1720927250991,13.47146383,144.41,144.38,0.035]
[1720927251300,11.74,144.4,144.38,0.035]
[1720927251481,1.73162171,144.39,144.38,0.035]
[1720927252396,1.73157734,144.43,144.38,0.035]
[1720927252606,13.47139698,144.42,144.38,11.775]
[1720927252780,1.73139698,144.42,144.38,11.775]
[1720927254299,6.1806,144.45,144.4,11.74]
[1720927254300,1.73145655,144.43,144.4,11.74]
[1720927254483,1.7312189,144.42,144.4,11.74]
[1720927254686,1.7312219,144.44,144.39,11.74]
[1720927254886,1.7312219,144.44,144.38,0.035]
[1720927255093,1.7312219,144.44,144.38,11.775]
[1720927258190,1.7312219,144.44,144.39,11.74]
[1720927258717,1.7312219,144.44,144.4,11.74]
[1720927259012,13.4712219,144.44,144.39,11.74]
[1720927259704,1.7312219,144.44,144.39,11.74]
[1720927260215,1.7312219,144.44,144.4,11.74]
[1720927260397,1.7312219,144.44,144.41,11.74]
[1720927260585,6.1806,144.45,144.41,11.74]
[1720927260586,1.73102612,144.45,144.41,11.74]
[1720927260791,1.73102612,144.45,144.42,11.74]
[1720927261398,1.73102612,144.45,144.41,11.74]
[1720927261800,13.47102612,144.45,144.4,11.74]
[1720927262193,13.47102612,144.45,144.38,0.035]
[1720927262401,13.47102612,144.45,144.38,65.035]
[1720927262623,13.47102612,144.45,144.4,11.74]
[1720927263111,11.74,144.44,144.38,0.035]
[1720927263416,1.73114032,144.43,144.39,11.74]
[1720927264310,1.73114032,144.43,144.4,11.74]
[1720927264892,1.73109871,144.42,144.38,0.035]
[1720927265095,11.74,144.44,144.39,11.74]
[1720927265404,1.73120967,144.43,144.39,11.74]
[1720927266311,1.73120422,144.45,144.41,11.74]
[1720927267406,13.47120422,144.45,144.4,11.74]
[1720927269805,13.47120422,144.45,144.38,0.035]
[1720927270031,13.47120422,144.45,144.4,11.74]
[1720927271347,13.47120422,144.45,144.38,45.035]
[1720927271507,13.47120422,144.45,144.4,11.74]
[1720927271709,13.47120422,144.45,144.38,45.035]
[1720927271710,6.9234,144.44,144.38,0.035]
[1720927272030,1.7313013,144.43,144.39,11.74]
[1720927272223,1.73129866,144.42,144.39,11.74]
[1720927272633,13.47129902,144.43,144.39,11.74]
[1720927272847,1.73129902,144.43,144.38,0.035]
[1720927273130,1.73115713,144.44,144.4,11.74]
[1720927274422,13.47115713,144.44,144.39,11.74]
[1720927274613,13.47106335,144.45,144.4,11.74]
[1720927275113,1.73106335,144.45,144.4,11.74]
[1720927275304,13.47106335,144.45,144.4,11.74]
[1720927277211,1.73106335,144.45,144.41,11.74]
[1720927277712,1.73088902,144.46,144.38,15.4765]
[1720927277909,13.47082548,144.48,144.42,11.74]
[1720927278154,13.47082548,144.48,144.43,11.74]
[1720927278647,20.39222548,144.48,144.43,11.74]
[1720927279439,1.73082548,144.48,144.44,11.74]
[1720927279939,13.47082548,144.48,144.43,11.74]
[1720927280323,18.6622,144.47,144.39,20.0]
[1720927280533,20.39344899,144.46,144.39,20.0]
[1720927280720,13.47111364,144.45,144.4,11.74]
[1720927280916,21.7124,144.44,144.38,0.035]
[1720927281124,11.74,144.42,144.38,0.035]
[1720927281334,1.73144238,144.41,144.38,0.035]
[1720927282846,13.47144238,144.41,144.38,0.035]
[1720927283151,1.73148219,144.4,144.38,0.035]
[1720927287259,13.47148219,144.4,144.38,0.035]
[1720927289151,1.73148219,144.4,144.38,0.035]
[1720927289447,13.47155189,144.43,144.38,11.775]
[1720927289652,1.73136879,144.42,144.38,11.775]
[1720927289849,13.47136879,144.42,144.38,11.775]
[1720927290052,13.47136879,144.42,144.38,0.035]
[1720927290053,11.74,144.41,144.38,0.035]
[1720927290253,1.73154534,144.4,144.38,0.035]
[1720927291054,1.73146528,144.41,144.38,0.035]
[1720927291252,13.47146528,144.41,144.38,0.035]
[1720927291957,11.74,144.42,144.38,0.035]
[1720927292154,1.73145069,144.41,144.38,0.035]
[1720927292865,13.47145069,144.41,144.38,0.035]
[1720927293155,1.73156234,144.4,144.38,0.035]
[1720927293537,1.73154869,144.41,144.38,0.035]
[1720927293740,1.73154869,144.41,144.38,11.775]
[1720927294548,1.73138039,144.42,144.38,11.775]
[1720927296042,13.47138039,144.42,144.38,0.035]
[1720927297355,11.74,144.41,144.38,0.035]
[1720927297554,1.7314753,144.4,144.38,0.035]
[1720927297755,1.73147514,144.41,144.38,0.035]
[1720927298872,13.47147514,144.41,144.38,0.035]
[1720927299771,1.73147514,144.41,144.38,0.035]
[1720927299952,13.47146831,144.42,144.38,0.035]
[1720927300357,1.73146831,144.42,144.38,11.775]
[1720927300563,1.7312459,144.43,144.39,11.74]
[1720927300767,1.73123088,144.42,144.39,11.74]
[1720927301068,1.73126423,144.43,144.39,11.74]
[1720927301271,1.7313207,144.42,144.38,11.775]
[1720927302774,11.74,144.43,144.38,11.775]
[1720927302775,13.47128095,144.43,144.38,11.775]
[1720927302958,1.73128095,144.43,144.39,11.74]
[1720927304673,13.47116669,144.44,144.39,11.74]
[1720927304873,11.74,144.43,144.39,11.74]
[1720927305268,13.47123723,144.43,144.39,11.74]
[1720927307369,1.73120956,144.42,144.39,11.74]
[1720927307573,1.73120956,144.42,144.38,11.775]
[1720927318183,1.73126993,144.46,144.38,15.4161]
[1720927318358,1.73095312,144.45,144.41,11.74]
[1720927319885,1.73102474,144.44,144.41,11.74]
[1720927320074,1.73102464,144.45,144.41,11.74]
[1720927321085,11.74,144.44,144.38,15.4161]
[1720927321277,13.47127092,144.43,144.38,11.775]
[1720927321468,1.73127066,144.42,144.38,11.775]
[1720927322064,1.73123129,144.43,144.39,11.74]
[1720927322269,1.73123129,144.43,144.38,0.035]
[1720927322478,1.73123129,144.43,144.39,11.74]
[1720927324186,1.73115981,144.44,144.4,11.74]
[1720927324377,1.73115981,144.45,144.41,11.74]
[1720927327094,8.65405981,144.45,144.38,0.035]
[1720927327270,20.39405981,144.45,144.4,11.74]
[1720927327592,11.74,144.44,144.39,11.74]
[1720927327784,1.73114018,144.43,144.38,0.035]
[1720927327989,1.73114018,144.43,144.39,11.74]
[1720927328374,1.73114018,144.43,144.4,11.74]
[1720927328694,1.73116875,144.44,144.4,11.74]
[1720927329576,13.47116875,144.44,144.39,11.74]
[1720927331003,1.73116875,144.44,144.39,11.74]
[1720927331299,13.47110143,144.45,144.4,11.74]
[1720927331474,13.47110143,144.45,144.38,0.035]
[1720927331674,13.47110143,144.45,144.4,11.74]
[1720927332395,22.7522,144.47,144.41,11.74]
[1720927332572,13.470954,144.46,144.41,12.53390859]
[1720927333184,1.730954,144.46,144.41,12.53390859]
[1720927333386,1.730954,144.46,144.42,11.74]
[1720927335893,17.56108668,144.47,144.43,11.74]
[1720927336094,17.56108668,144.47,144.38,0.8281495]
[1720927336095,1.73078668,144.47,144.44,11.74]
[1720927336395,1.73069389,144.48,144.44,11.74]
[1720927336700,1.73069389,144.48,144.4,12.53272597]
[1720927336896,1.73069389,144.48,144.41,45.0]
[1720927337096,1.73069389,144.48,144.45,11.74]
[1720927337276,11.74,144.48,144.44,11.74]
[1720927337477,1.73061433,144.47,144.41,45.0]
[1720927337679,11.74,144.46,144.4,45.0]
[1720927337982,1.73090328,144.45,144.41,11.74]
[1720927338299,13.47090328,144.45,144.35,16.1761]
[1720927338500,13.47090328,144.45,144.37,45.0]
[1720927338888,1.73100152,144.44,144.4,11.74]
[1720927339799,1.73100152,144.44,144.35,16.1761]
[1720927339980,1.73100152,144.44,144.38,11.775]
[1720927339981,18.21740152,144.44,144.38,11.775]
[1720927340186,18.21740152,144.44,144.4,11.74]
[1720927340391,18.21740152,144.44,144.39,0.58271589]
[1720927340392,18.21740152,144.44,144.41,11.74]
[1720927342808,18.21740152,144.44,144.38,0.82889852]
[1720927343010,18.21740152,144.44,144.4,11.74]
[1720927343311,18.21740152,144.44,144.39,11.74]
[1720927343312,29.95740152,144.44,144.39,11.74]
[1720927343688,29.95740152,144.44,144.38,0.035]
[1720927343903,29.95740152,144.44,144.39,11.74]
[1720927344402,29.95740152,144.44,144.38,0.035]
[1720927344578,29.95740152,144.44,144.39,11.74]
[1720927344974,29.95740152,144.44,144.38,0.82908782]
[1720927345180,11.74,144.43,144.38,11.775]
[1720927345395,1.73131129,144.42,144.38,11.775]
[1720927345904,13.47131129,144.42,144.38,11.775]
[1720927346085,13.47131129,144.42,144.38,0.035]
[1720927346487,1.73142884,144.41,144.38,0.035]
[1720927347492,1.73142884,144.41,144.38,11.775]
[1720927347906,11.74,144.4,144.38,0.035]
[1720927348105,13.47172535,144.39,144.38,0.035]
[1720927348284,1.73172535,144.39,144.38,0.035]
[1720927350602,1.73169052,144.4,144.38,0.035]
[1720927351603,1.73152162,144.41,144.38,11.775]
[1720927351814,23.4097,144.44,144.38,11.775]
[1720927351815,1.73135467,144.42,144.38,11.775]
[1720927352310,1.73135467,144.42,144.39,11.74]
[1720927352889,1.73127093,144.43,144.39,11.74]
[1720927353093,1.73127093,144.43,144.38,0.035]
[1720927353310,1.73127093,144.43,144.4,11.74]
[1720927353612,1.73127093,144.43,144.41,11.74]
[1720927353790,20.39395929,144.45,144.41,11.74]
[1720927354116,11.74,144.44,144.39,11.74]
[1720927354311,1.73117462,144.43,144.39,11.74]
[1720927355797,17.85952416,144.48,144.42,11.74]
[1720927355798,1.73100621,144.45,144.42,11.74]
[1720927356008,1.73100621,144.46,144.42,11.74]
[1720927356397,1.7308507,144.45,144.42,11.74]
[1720927356592,1.7309078,144.46,144.42,11.74]
[1720927357413,1.7309078,144.46,144.43,11.74]
[1720927357600,11.74,144.47,144.44,11.74]
[1720927357601,1.73073789,144.47,144.44,11.74]
[1720927357787,1.73071028,144.48,144.44,11.74]
[1720927360015,1.73071028,144.48,144.45,11.74]
[1720927360245,1.73053454,144.49,144.45,11.74]
[1720927360393,1.73053488,144.48,144.45,11.74]
[1720927360592,1.73053463,144.49,144.45,11.74]
[1720927360819,1.73053555,144.48,144.45,11.74]
[1720927362020,1.7305145,144.49,144.45,11.74]
[1720927362200,1.73051541,144.48,144.45,11.74]
[1720927362517,1.73051336,144.49,144.45,11.74]
[1720927362713,1.73051527,144.48,144.45,11.74]
[1720927362914,1.73051585,144.49,144.41,15.4767]
[1720927363116,1.73051514,144.48,144.45,11.74]
[1720927363316,1.73051581,144.49,144.45,11.74]
[1720927363502,1.73051573,144.48,144.45,11.74]
[1720927364527,1.73051621,144.49,144.45,11.74]
[1720927364819,1.73051517,144.48,144.45,11.74]
[1720927364995,1.73051536,144.49,144.45,11.74]
[1720927365198,1.73054258,144.48,144.42,45.0]
[1720927365519,1.73054258,144.48,144.44,11.74]
[1720927366606,1.73054258,144.48,144.41,15.4767]
[1720927366807,11.74,144.47,144.42,11.74]
[1720927367010,1.73084596,144.46,144.38,0.035]
[1720927367206,1.73084536,144.45,144.38,20.035]
[1720927367404,13.47084536,144.45,144.4,11.74]
[1720927367928,1.73084536,144.45,144.38,0.035]
[1720927368126,13.47084536,144.45,144.4,11.74]
[1720927369119,1.73084536,144.45,144.42,11.74]
[1720927369500,1.73084536,144.45,144.38,0.035]
[1720927369705,1.73084536,144.45,144.41,11.74]
[1720927370599,1.73084536,144.45,144.42,11.74]
[1720927371031,1.73084536,144.45,144.38,45.035]
[1720927371212,1.73084536,144.45,144.41,11.74]
[1720927371412,13.47084536,144.45,144.41,11.74]
[1720927372223,1.73084536,144.45,144.41,11.74]
[1720927372738,1.73084536,144.45,144.42,11.74]
[1720927373308,13.47084536,144.45,144.41,11.74]
[1720927374411,1.73084536,144.45,144.41,11.74]
[1720927375129,18.1858,144.44,144.38,0.035]
[1720927375427,13.47123824,144.43,144.38,11.775]
[1720927375629,1.73129715,144.42,144.38,11.775]
[1720927376227,8.17701152,144.44,144.4,11.74]
[1720927376825,8.17701152,144.44,144.41,11.74]
[1720927377908,1.73103813,144.43,144.4,11.74]
[1720927378812,1.73103813,144.43,144.39,11.74]
[1720927385834,1.73114147,144.45,144.41,11.74]
[1720927387051,1.73114147,144.45,144.42,11.74]
[1720927387424,16.3644,144.46,144.43,11.74]
[1720927388154,16.3644,144.46,144.42,11.74]
[1720927388351,1.73080684,144.47,144.43,11.74]
[1720927388532,1.73080684,144.47,144.43,12.53318219]
[1720927388932,1.73080684,144.47,144.43,11.74]
[1720927390426,8.65300684,144.47,144.42,11.74]
[1720927390660,13.47080684,144.47,144.42,11.74]
[1720927391756,6.9226,144.46,144.38,15.0585]
[1720927391958,17.64744993,144.45,144.39,11.74]
[1720927392130,11.74,144.43,144.39,11.74]
[1720927392331,1.73123469,144.42,144.38,11.775]
[1720927392858,1.7312176,144.43,144.39,12.5341837]
[1720927393042,1.7312176,144.44,144.41,11.74]